bitfinex/quotes_ETHUSD_20260226
["timestamp","ask_amount","ask_price","bid_price","bid_amount"]
[1772115715711,0.001,2067.1,2067.0,1.20948234]
[1772115716522,0.001,2067.1,2067.0,1.39277607]
[1772115717418,0.001,2067.4,2067.1,0.18323534]
[1772115717927,0.001,2067.4,2067.2,1.20936532]
[1772115719529,0.001,2067.4,2067.2,1.39249556]
[1772115720403,1.20906279,2067.8,2067.2,1.39244302]
[1772115720404,0.71788686,2067.8,2067.2,1.39244302]
[1772115720619,0.71788686,2067.8,2067.3,0.1830777]
[1772115721134,0.71788686,2067.8,2067.2,1.20936532]
[1772115721433,0.71788686,2067.8,2066.9,2.84250668]
[1772115721733,0.71788686,2067.8,2066.9,1.39250668]
[1772115724123,0.71788686,2067.6,2066.9,1.39250668]
[1772115725204,0.71788686,2067.6,2066.7,1.39246999]
[1772115725409,0.71788686,2067.6,2066.7,1.2096579]
[1772115726115,0.71788686,2067.6,2066.7,1.39246999]
[1772115726310,1.20918984,2067.5,2066.7,1.39246999]
[1772115726515,0.71788686,2067.4,2066.7,1.39246999]
[1772115727512,0.71788686,2067.4,2067.1,0.001]
[1772115727907,0.71788686,2067.4,2066.6,1.21077955]
[1772115728137,0.71788686,2067.4,2066.9,0.001]
[1772115728433,0.71788686,2067.2,2066.9,0.001]
[1772115729508,0.71788686,2067.2,2066.6,0.0011]
[1772115730939,0.71788686,2067.0,2066.6,0.0011]
[1772115733639,0.71788686,2066.9,2066.6,0.0011]
[1772115734014,0.71788686,2066.9,2066.4,0.0011]
[1772115736011,0.71788686,2066.7,2066.4,0.0011]
[1772115737722,0.71788686,2066.7,2066.1,0.0011]
[1772115737929,1.20971644,2066.6,2066.1,0.0011]
[1772115738123,0.71788686,2066.7,2066.1,0.18541286]
[1772115738337,0.71788686,2066.9,2066.2,0.18431286]
[1772115739272,0.71788686,2067.3,2066.5,0.28498321]
[1772115740060,0.71788686,2067.1,2066.6,1.20971644]
[1772115740567,0.71788686,2067.1,2066.5,0.28498321]
[1772115740734,0.71788686,2067.1,2066.5,1.49475296]
[1772115741144,0.71788686,2067.1,2066.5,1.20976975]
[1772115741746,0.71788686,2067.1,2066.4,1.49589227]
[1772115743048,1.9273692,2067.0,2066.4,1.49589227]
[1772115743762,0.71788686,2066.9,2066.4,1.49589227]
[1772115743960,0.71788686,2066.9,2066.4,0.001]
[1772115744166,0.71788686,2066.9,2066.4,1.49600946]
[1772115744565,0.71788686,2066.9,2066.5,0.28517838]
[1772115744873,2.55088686,2067.0,2066.5,0.28517838]
[1772115745751,3.7603902,2067.0,2066.5,1.49493424]
[1772115746483,2.55088686,2067.0,2066.5,1.49493424]
[1772115746783,3.76037003,2067.0,2066.5,1.49493424]
[1772115747459,1.833,2067.0,2066.6,0.28531211]
[1772115747676,0.701677,2067.1,2066.6,0.28531211]
[1772115747875,0.701677,2067.1,2066.7,1.2096579]
[1772115748579,0.701677,2067.1,2066.7,1.49500268]
[1772115748881,3.74505164,2067.2,2066.7,1.49500268]
[1772115749580,3.74505164,2067.2,2066.7,0.28534478]
[1772115749957,0.701677,2067.1,2066.7,0.28534478]
[1772115750862,0.701677,2067.1,2066.7,1.49498349]
[1772115751071,0.701677,2067.1,2066.7,0.28534478]
[1772115752400,1.91112335,2067.1,2066.7,0.28534478]
[1772115752592,0.001,2066.9,2066.5,1.49521404]
[1772115753298,0.001,2066.9,2066.6,0.28549645]
[1772115754079,0.701677,2067.3,2066.7,0.28449645]
[1772115754609,0.701677,2067.3,2066.9,0.28452796]
[1772115754796,1.91090256,2067.5,2066.9,0.28452796]
[1772115755602,0.701677,2067.5,2066.9,0.28452796]
[1772115755897,0.701677,2067.5,2066.8,2.68640804]
[1772115756103,0.701677,2067.5,2066.9,0.28455825]
[1772115756791,1.91086842,2067.5,2067.0,1.20948234]
[1772115756985,1.91086842,2067.5,2067.0,1.49407274]
[1772115758905,0.701677,2067.5,2067.1,1.49410295]
[1772115759691,0.701677,2067.5,2067.1,0.28468973]
[1772115759881,1.91087677,2067.5,2067.1,0.28468973]
[1772115760490,0.701677,2067.5,2067.1,1.4940967]
[1772115761798,0.7521769,2067.4,2066.7,0.28478965]
[1772115762787,0.7541769,2067.6,2067.0,0.28482063]
[1772115763103,0.7521769,2067.5,2067.1,1.49424446]
[1772115763307,0.7521769,2067.5,2067.1,0.28482063]
[1772115764305,0.7521769,2067.5,2066.9,1.49438693]
[1772115765103,0.7541769,2067.3,2066.9,1.49438693]
[1772115767805,0.7541769,2067.3,2066.9,1.49443155]
[1772115769714,0.002,2067.3,2067.0,0.28503598]
[1772115769920,7.4236476,2067.7,2067.0,0.28503598]
[1772115769921,0.002,2068.2,2067.7,0.28503598]
[1772115770084,0.002,2068.7,2067.1,0.18685624]
[1772115770085,0.7521769,2068.9,2068.2,0.71845999]
[1772115771820,0.7521769,2068.9,2067.7,0.71845999]
[1772115771821,0.7521769,2068.6,2067.7,0.71845999]
[1772115773719,0.7521769,2068.4,2067.8,1.20901441]
[1772115774297,0.7521769,2068.9,2067.9,2.19526865]
[1772115774499,0.7521769,2068.9,2068.0,0.71845999]
[1772115775702,1.96055018,2068.9,2068.1,1.20883903]
[1772115775905,0.7521769,2068.8,2068.0,1.20889605]
[1772115776610,0.7521769,2068.8,2068.0,1.94730619]
[1772115778226,0.75947586,2068.7,2068.0,1.94730619]
[1772115778818,0.75947586,2068.7,2067.9,2.66592154]
[1772115779316,0.75947586,2068.7,2067.9,3.40433168]
[1772115780037,0.75947586,2068.5,2067.9,3.40433168]
[1772115780218,0.75947586,2068.5,2068.0,0.73841014]
[1772115780721,0.001,2068.6,2068.0,0.73841014]
[1772115780901,0.001,2068.6,2068.2,0.73841014]
[1772115781310,0.76047586,2068.6,2068.0,0.73841014]
[1772115782205,0.76047586,2068.6,2068.1,1.94724917]
[1772115782406,0.75947586,2068.5,2067.8,4.99898642]
[1772115783213,0.75947586,2068.5,2067.8,5.73739656]
[1772115784736,0.75947586,2068.5,2067.8,1.94739656]
[1772115784913,0.75947586,2068.5,2067.9,0.73841014]
[1772115785112,0.001,2068.6,2067.9,0.73841014]
[1772115785113,0.001,2068.6,2068.0,0.73841014]
[1772115786007,0.001,2068.6,2068.3,0.73841014]
[1772115786423,0.71047586,2068.9,2068.3,0.73841014]
[1772115786628,1.8710966,2069.1,2068.3,0.73841014]
[1772115787127,1.8710966,2069.1,2068.5,0.73841014]
[1772115787128,0.0470966,2069.1,2068.5,0.73841014]
[1772115787331,0.0470966,2069.1,2068.6,0.73841014]
[1772115790830,0.0470966,2069.1,2068.7,0.73841014]
[1772115791533,0.0470966,2069.1,2068.6,1.94691448]
[1772115791710,0.0470966,2069.1,2068.7,0.73841014]
[1772115792137,0.002,2068.9,2068.7,0.73841014]
[1772115792833,0.002,2068.9,2068.8,1.94684014]
[1772115793330,0.002,2068.9,2068.8,1.20843]
[1772115793630,0.0490966,2069.1,2068.8,1.94684014]
[1772115793828,0.0490966,2069.1,2068.9,0.73841014]
[1772115794705,0.002,2069.4,2068.9,0.73841014]
[1772115795054,0.002,2069.4,2069.1,0.73841014]
[1772115795219,0.75947586,2069.8,2069.1,0.73841014]
[1772115795619,0.75947586,2069.7,2069.0,3.27098096]
[1772115795839,0.75947586,2069.7,2069.0,1.94672333]
[1772115796218,0.75947586,2069.7,2069.1,0.73841014]
[1772115797549,1.96740579,2069.7,2069.1,1.94661925]
[1772115799551,0.75947586,2069.7,2069.1,1.94661925]
[1772115799843,1.96739545,2069.7,2069.1,1.94661925]
[1772115800643,0.75947586,2069.6,2069.0,1.20827232]
[1772115801351,4.83140817,2069.8,2069.0,1.20827232]
[1772115801352,0.75947586,2069.8,2069.1,0.73841014]
[1772115801662,0.75947586,2069.8,2069.2,1.2081964]
[1772115802020,0.75947586,2069.8,2069.2,1.94660654]
[1772115802644,0.75947586,2069.8,2069.3,0.73841014]
[1772115802951,1.9672511,2070.0,2069.3,0.73841014]
[1772115803336,0.75947586,2070.0,2069.3,0.73841014]
[1772115803521,0.75947586,2070.0,2069.4,1.20807963]
[1772115803721,0.75947586,2070.0,2069.5,0.73841014]
[1772115804156,0.75947586,2070.2,2069.5,0.73841014]
[1772115804361,0.75947586,2070.4,2069.7,0.73841014]
[1772115804532,0.75947586,2070.9,2069.9,0.73841014]
[1772115804737,0.75947586,2070.9,2070.1,0.73841014]
[1772115805657,2.64402217,2071.4,2070.5,0.73841014]
[1772115805658,1.96642931,2071.4,2070.5,0.73841014]
[1772115805854,1.96642931,2071.4,2070.5,1.89441014]
[1772115805855,0.75947586,2071.3,2070.5,1.89441014]
[1772115806055,1.20695345,2071.4,2070.6,0.7439982]
[1772115806232,1.93470744,2071.6,2070.7,0.7439982]
[1772115806438,0.7279069,2071.5,2070.7,0.7439982]
[1772115807125,0.7279069,2071.7,2071.1,0.7439982]
[1772115807440,1.20936092,2071.8,2071.3,1.95096966]
[1772115807441,0.00264023,2071.8,2071.3,1.95096966]
[1772115807640,4.82472394,2072.7,2071.3,1.95096966]
[1772115807641,0.7279069,2072.8,2071.4,0.7439982]
[1772115807848,1.20603984,2072.9,2071.3,1.95096966]
[1772115807849,0.7279069,2072.5,2071.3,1.95096966]
[1772115808160,6.56926001,2073.0,2071.7,0.7439982]
[1772115808161,0.7279069,2073.0,2071.7,0.7439982]
[1772115808372,0.7279069,2073.0,2071.8,0.7439982]
[1772115808521,0.7279069,2073.0,2072.0,0.7439982]
[1772115809458,1.20603984,2072.9,2072.2,0.7439982]
[1772115809650,1.93393172,2073.0,2072.2,0.7439982]
[1772115809960,1.9338951,2073.0,2072.2,0.7439982]
[1772115810726,0.7279069,2072.9,2072.0,1.20654099]
[1772115810925,0.7279069,2072.9,2072.1,0.7439982]
[1772115811260,0.7279069,2072.9,2071.8,1.95067838]
[1772115811474,0.7279069,2072.9,2071.8,0.7439982]
[1772115811761,0.7279069,2072.7,2071.8,0.7439982]
[1772115812258,0.7279069,2072.7,2071.7,0.783]
[1772115812751,0.7279069,2072.7,2071.8,0.7439982]
[1772115812959,0.7279069,2072.7,2071.7,1.98973451]
[1772115812960,1.20598166,2073.0,2072.0,0.7439982]
[1772115813255,1.93388856,2073.0,2072.0,0.7439982]
[1772115813575,1.20609803,2072.8,2072.0,0.7439982]
[1772115813846,0.7279069,2072.7,2071.9,1.20659459]
[1772115814056,0.7279069,2072.7,2071.8,0.18685624]
[1772115814557,0.7279069,2072.7,2071.8,0.93085444]
[1772115815257,0.7279069,2072.7,2071.6,1.2067599]
[1772115815664,0.7279069,2072.5,2071.5,3.41682407]
[1772115816332,0.7279069,2072.5,2071.5,2.2099982]
[1772115816935,0.7279069,2072.5,2071.5,1.466]
[1772115817746,1.20633082,2072.4,2071.5,1.466]
[1772115817961,0.75298706,2072.3,2071.5,1.466]
[1772115819240,0.75298706,2072.3,2071.7,0.001]
[1772115819669,0.75298706,2072.2,2071.5,0.001]
[1772115820176,0.75298706,2072.0,2071.5,0.001]
[1772115821374,0.75298706,2072.0,2070.6,1.97379295]
[1772115821375,0.75298706,2071.7,2070.6,1.97379295]
[1772115821971,0.75298706,2071.5,2070.6,1.97379295]
[1772115822171,0.75298706,2071.5,2070.6,0.76645706]
[1772115822347,0.75298706,2071.5,2070.6,1.97382595]
[1772115822546,0.75298706,2071.5,2070.6,0.76645706]
[1772115823242,0.75298706,2071.5,2070.5,1.20739275]
[1772115823444,1.20677975,2071.7,2070.6,0.76645706]
[1772115823650,0.75298706,2072.0,2071.1,0.76645706]
[1772115823849,0.75298706,2072.0,2071.2,0.76645706]
[1772115824063,1.95956387,2072.0,2071.3,1.97342852]
[1772115824474,0.75298706,2072.3,2071.4,0.76645706]
[1772115825055,4.82711649,2072.5,2071.6,0.76645706]
[1772115825056,1.9612611,2072.5,2071.6,0.76645706]
[1772115825257,1.20827404,2072.5,2071.6,0.76645706]
[1772115825459,0.75298706,2072.4,2071.6,0.76645706]
[1772115826086,0.002,2072.5,2071.8,0.76645706]
[1772115826482,1.20827741,2072.5,2071.8,0.76645706]
[1772115826684,0.002,2072.5,2071.8,0.76645706]
[1772115827193,1.20827284,2072.5,2071.8,0.76645706]
[1772115827489,0.002,2072.5,2071.8,0.76645706]
[1772115827899,1.20827751,2072.5,2071.8,0.76645706]
[1772115828263,0.002,2072.5,2071.9,1.973079]
[1772115828669,0.002,2072.5,2071.9,0.76645706]
[1772115828882,0.75498706,2072.5,2071.7,2.66873791]
[1772115830799,1.20633082,2072.4,2071.7,2.66873791]
[1772115832981,1.20633082,2072.4,2071.7,3.43519497]
[1772115834872,1.20633082,2072.4,2071.7,3.43619497]
[1772115835300,0.002,2072.3,2071.7,3.43619497]
[1772115836008,0.75498706,2072.3,2071.7,2.22945706]
[1772115836199,0.002,2072.3,2071.8,0.72979002]
[1772115837091,0.002,2072.3,2071.8,1.9364588]
[1772115837408,0.002,2072.3,2071.9,0.72979002]
[1772115839788,4.82392736,2073.0,2072.1,0.72979002]
[1772115839789,1.93993698,2072.9,2072.1,0.72979002]
[1772115839989,1.20606423,2072.9,2072.1,0.72979002]
[1772115840191,1.20606423,2072.9,2071.8,4.82625482]
[1772115840192,0.73387275,2072.8,2071.8,0.72979002]
[1772115840397,0.73387275,2072.7,2071.8,0.794]
[1772115840875,2.06266777,2072.8,2071.8,0.794]
[1772115840876,0.73387275,2072.8,2071.9,0.72979002]
[1772115842074,0.73387275,2072.6,2071.8,2.00063446]
[1772115842574,0.73387275,2072.6,2071.8,2.73042448]
[1772115842772,0.73387275,2072.6,2071.7,1.468]
[1772115843007,0.73387275,2072.6,2071.7,2.67473495]
[1772115843188,0.73387275,2072.6,2071.7,1.468]
[1772115844185,0.73387275,2072.4,2071.7,0.001]
[1772115845010,0.73387275,2072.3,2071.7,0.001]
[1772115846302,0.73387275,2072.1,2071.7,0.001]
[1772115849201,1.94038452,2072.1,2071.7,0.001]
[1772115849705,0.73387275,2072.1,2071.7,0.001]
[1772115850082,0.73387275,2072.1,2071.9,0.001]
[1772115851096,1.20646087,2072.2,2071.9,0.001]
[1772115851284,1.94033362,2072.2,2071.9,0.001]
[1772115852487,0.73387275,2072.1,2071.9,0.001]
[1772115852696,0.73387275,2072.1,2071.7,0.001]
[1772115852894,1.94043645,2072.0,2071.7,0.001]
[1772115853100,0.73387275,2071.8,2071.5,0.001]
[1772115855496,1.94055442,2071.8,2071.5,0.001]
[1772115855814,0.73387275,2071.8,2071.5,0.001]
[1772115856313,4.82579972,2072.2,2071.5,0.73079002]
[1772115856314,0.73387275,2072.2,2071.5,0.73079002]
[1772115856607,0.002,2072.4,2071.5,0.73079002]
[1772115857010,1.20834631,2072.4,2071.7,0.72979002]
[1772115857386,0.73587275,2072.4,2071.7,1.93647678]
[1772115857588,0.002,2072.4,2071.8,0.72979002]
[1772115859514,0.73387275,2072.8,2072.0,0.72979002]
[1772115859817,0.73387275,2072.7,2072.0,0.72979002]
[1772115860792,0.73387275,2072.7,2071.9,1.20662194]
[1772115861110,0.73387275,2072.7,2071.9,1.93641196]
[1772115861498,1.94008716,2072.6,2071.9,1.93641196]
[1772115861698,0.73387275,2072.6,2071.9,1.93641196]
[1772115861907,0.73387275,2072.8,2072.0,0.72979002]
[1772115862111,0.73387275,2072.9,2072.0,0.72979002]
[1772115863618,1.20609803,2072.8,2072.2,0.72979002]
[1772115863829,0.002,2072.4,2072.2,0.72979002]
[1772115864193,1.20601742,2073.0,2072.3,0.72979002]
[1772115864498,0.1627804,2073.2,2072.6,0.72979002]
[1772115864691,1.20540019,2074.0,2073.3,0.72979002]
[1772115864891,0.73387275,2073.8,2073.0,1.51179002]
[1772115865109,0.73387275,2073.8,2073.0,0.72979002]
[1772115865511,1.36835497,2073.7,2073.1,0.72979002]
[1772115865715,0.1627804,2073.7,2073.1,0.72979002]
[1772115865930,0.00099984,2074.1,2073.1,0.72979002]
[1772115865931,1.20638253,2074.1,2073.1,0.72979002]
[1772115866229,0.1627804,2074.0,2073.1,0.72979002]
[1772115866392,1.20638253,2074.1,2073.1,0.72979002]
[1772115866595,0.1627804,2074.0,2073.3,0.71840427]
[1772115866811,0.1627804,2074.0,2073.2,0.18685624]
[1772115866812,0.1627804,2074.0,2073.5,0.71840427]
[1772115867212,1.2063616,2074.1,2073.4,1.461]
[1772115867213,0.00099984,2074.1,2073.7,0.71840427]
[1772115867625,0.71552463,2073.9,2073.1,0.71840427]
[1772115867821,1.20540019,2074.0,2073.1,0.71840427]
[1772115868126,1.20540019,2074.0,2073.1,2.18140427]
[1772115868324,0.71552463,2073.8,2073.1,1.463]
[1772115868826,0.71552463,2073.8,2072.9,0.71840427]
[1772115868827,0.71552463,2073.8,2072.7,0.71840427]
[1772115869721,1.20574901,2073.4,2072.7,0.71840427]
[1772115870432,1.92127364,2073.4,2072.6,1.464]
[1772115871099,1.92127364,2073.4,2072.6,2.67020597]
[1772115871725,1.92127364,2073.4,2072.6,1.464]
[1772115871930,1.92127364,2073.4,2072.6,2.67020699]
[1772115872110,1.92127364,2073.4,2072.6,1.464]
[1772115872430,0.71552463,2073.3,2072.4,1.9247051]
[1772115872726,4.82273947,2073.6,2072.5,0.71840427]
[1772115873811,1.92115734,2073.7,2072.6,1.20621441]
[1772115873812,0.71552463,2073.3,2072.6,1.20621441]
[1772115874012,0.71552463,2073.3,2072.3,1.463]
[1772115874013,0.71552463,2073.3,2072.5,1.20623543]
[1772115874528,0.71552463,2073.3,2072.5,0.71840427]
[1772115874732,0.71552463,2073.3,2072.3,3.38776152]
[1772115875831,0.71552463,2073.1,2072.3,0.71840427]
[1772115876020,0.71552463,2073.1,2072.3,1.92479212]
[1772115876529,1.92127364,2073.4,2072.4,0.71840427]
[1772115877237,1.92127364,2073.4,2072.8,0.001]
[1772115877407,0.002,2073.1,2072.8,0.001]
[1772115878033,0.72276586,2073.1,2072.5,0.001]
[1772115880537,1.92870231,2073.1,2072.5,0.001]
[1772115881115,0.72076586,2073.0,2072.5,0.001]
[1772115882140,1.20603984,2072.9,2072.5,0.001]
[1772115882303,1.9268057,2072.9,2072.5,0.001]
[1772115882717,0.72076586,2072.8,2072.5,0.001]
[1772115883917,1.92703847,2072.5,2071.9,0.001]
[1772115884332,1.20627261,2072.5,2071.9,0.77554778]
[1772115884535,3.01812941,2072.8,2072.0,0.77454778]
[1772115884850,1.20599524,2073.0,2072.0,0.77454778]
[1772115885554,1.9267611,2073.0,2072.0,0.77454778]
[1772115886323,1.9267611,2073.0,2072.1,1.20650547]
[1772115886527,1.9267611,2073.0,2072.2,0.77454778]
[1772115886913,0.72076586,2073.0,2072.2,0.77454778]
[1772115888009,1.92674779,2073.0,2072.2,0.77454778]
[1772115888345,1.92681697,2072.9,2072.2,0.77454778]
[1772115888519,1.20602683,2073.0,2072.2,0.77454778]
[1772115888715,1.92679269,2073.0,2072.2,0.77454778]
[1772115889218,0.72076586,2073.0,2072.2,0.77454778]
[1772115889419,0.002,2073.1,2072.3,0.77454778]
[1772115889620,1.20792862,2073.1,2072.3,0.77454778]
[1772115891013,0.002,2073.1,2072.4,1.9808786]
[1772115891445,0.002,2073.1,2072.5,0.77454778]
[1772115892747,0.002,2073.0,2072.5,0.77454778]
[1772115892911,0.002,2073.0,2072.6,1.20621441]
[1772115893112,0.002,2073.0,2072.7,0.77454778]
[1772115894422,0.002,2073.0,2072.4,6.29571181]
[1772115894423,0.72276586,2073.0,2072.4,1.20732985]
[1772115896150,1.92879252,2073.0,2072.4,0.001]
[1772115896443,1.20802666,2073.0,2072.4,0.001]
[1772115896659,0.77686793,2072.9,2072.4,0.001]
[1772115899144,1.98291254,2072.9,2072.4,0.001]
[1772115899559,0.77686793,2072.9,2072.4,0.001]
[1772115900257,0.002,2073.0,2072.4,1.95356902]
[1772115900552,0.002,2073.0,2072.5,0.74628538]
[1772115901046,0.77886793,2073.0,2072.5,0.74628538]
[1772115901225,0.77886793,2073.0,2072.4,1.20731496]
[1772115901421,0.77886793,2073.0,2072.4,0.001]
[1772115901757,0.77686793,2072.8,2072.1,1.20750099]
[1772115902055,1.805,2073.0,2072.2,0.74628538]
[1772115902056,0.77686793,2072.9,2072.2,0.74628538]
[1772115902236,0.77686793,2072.7,2072.1,0.001]
[1772115903893,0.77686793,2072.3,2072.1,0.001]
[1772115904150,0.77686793,2072.3,2071.6,0.001]
[1772115904448,0.77686793,2072.3,2071.6,0.74728538]
[1772115904449,1.98326212,2072.3,2071.6,0.74728538]
[1772115906218,1.98326212,2072.3,2071.6,1.95404584]
[1772115906549,1.98326212,2072.3,2071.6,1.95406388]
[1772115906750,1.98326212,2072.3,2072.0,0.001]
[1772115906952,0.77686793,2072.2,2072.0,0.001]
[1772115907149,0.77686793,2072.2,2071.6,0.001]
[1772115908345,3.78720059,2072.4,2071.7,1.9529962]
[1772115908545,0.77686793,2072.7,2071.8,0.74628538]
[1772115910243,0.77686793,2072.7,2071.9,1.20662194]
[1772115910244,1.20621441,2072.6,2071.9,1.20662194]
[1772115910990,1.20621441,2072.6,2071.8,1.95292195]
[1772115911542,0.77686793,2072.5,2071.6,0.001]
[1772115912165,0.77686793,2072.2,2071.6,0.001]
[1772115912339,1.9833734,2072.1,2071.6,0.001]
[1772115912544,1.20650547,2072.1,2071.6,0.001]
[1772115914247,1.9833734,2072.1,2071.6,0.001]
[1772115916978,1.20662194,2071.9,2071.6,0.001]
[1772115917476,1.98348987,2071.9,2071.4,0.001]
[1772115917695,0.77686793,2071.8,2071.4,0.001]
[1772115919183,1.98358436,2071.8,2071.4,0.001]
[1772115919477,1.98358436,2071.8,2071.5,0.001]
[1772115920573,0.77886793,2072.1,2071.5,0.001]
[1772115920875,1.98542102,2072.1,2071.5,0.001]
[1772115921274,0.002,2072.1,2071.5,1.95414031]
[1772115921454,1.20850574,2072.1,2071.5,1.95414031]
[1772115922380,1.20850574,2072.1,2071.5,0.74728538]
[1772115922783,0.77686793,2072.0,2071.5,0.001]
[1772115923279,1.20662194,2071.9,2071.5,0.001]
[1772115927566,1.97950005,2071.9,2071.5,0.001]
[1772115928460,1.20661172,2072.0,2071.5,0.001]
[1772115928663,1.2085144,2072.1,2071.5,0.77467022]
[1772115929155,1.20850773,2072.1,2071.5,0.77467022]
[1772115930258,0.77287811,2072.0,2071.5,0.001]
[1772115932780,1.97950005,2071.9,2071.5,0.001]
[1772115933161,0.77287811,2071.8,2071.6,0.001]
[1772115933567,0.002,2071.8,2071.6,0.001]
[1772115940699,0.78776728,2071.8,2071.6,0.001]
[1772115941489,0.78776728,2071.8,2071.4,0.001]
[1772115941490,0.78576728,2071.7,2071.4,0.001]
[1772115941672,0.78576728,2071.5,2071.4,0.001]
[1772115942166,0.78576728,2071.5,2071.3,0.001]
[1772115942367,0.78576728,2071.5,2070.8,0.74296395]
[1772115943693,1.20691319,2071.4,2070.9,1.20720459]
[1772115943901,1.20691319,2071.4,2070.9,0.74296395]
[1772115944809,5.61283311,2071.7,2070.9,0.74296395]
[1772115945805,3.01872208,2071.8,2071.1,0.74296395]
[1772115945999,0.002,2071.8,2071.4,0.74296395]
[1772115947785,1.2086934,2071.8,2071.4,0.74296395]
[1772115947981,0.002,2071.8,2071.4,1.94987654]
[1772115948297,0.002,2072.1,2071.6,0.74296395]
[1772115948992,1.20850903,2072.1,2071.6,0.74296395]
[1772115949183,0.002,2072.1,2071.6,0.74296395]
[1772115949582,0.002,2072.3,2071.8,0.74296395]
[1772115949914,0.002,2072.3,2072.0,0.74296395]
[1772115951011,0.002,2072.3,2071.5,1.447]
[1772115951202,0.002,2072.3,2071.6,0.74296395]
[1772115952908,1.20838903,2072.3,2071.6,1.94973498]
[1772115953086,1.99415631,2072.3,2071.7,0.74296395]
[1772115953927,1.20838903,2072.3,2071.7,0.74296395]
[1772115954509,1.99415631,2072.3,2071.7,0.74296395]
[1772115955007,1.99415631,2072.3,2071.7,1.94966509]
[1772115955229,1.20839665,2072.3,2071.8,0.74296395]
[1772115955395,0.00096169,2073.9,2072.7,0.74296395]
[1772115955714,1.20642446,2073.9,2073.2,2.05767896]
[1772115955915,0.004,2073.8,2073.1,0.74296395]
[1772115956458,1.20642298,2073.9,2073.1,0.74296395]
[1772115956715,0.004,2073.8,2073.1,0.74296395]
[1772115957422,0.004,2073.8,2073.2,1.20586532]
[1772115958918,0.00096169,2073.9,2073.2,1.20586532]
[1772115959128,0.004,2073.8,2073.2,1.20586532]
[1772115959924,0.004,2073.8,2073.2,1.448]
[1772115960096,0.00096169,2073.9,2073.2,1.448]
[1772115960292,0.00096169,2073.9,2072.9,1.2060083]
[1772115960293,0.72893327,2073.8,2072.9,1.2060083]
[1772115960499,0.72893327,2073.8,2073.0,1.448]
[1772115960814,0.72893327,2073.7,2073.0,1.448]
[1772115961215,0.72493327,2073.7,2073.0,1.448]
[1772115961438,0.004,2073.6,2073.0,1.448]
[1772115961799,1.20963271,2073.6,2073.0,2.65395966]
[1772115963132,1.93456598,2073.6,2072.8,0.78698017]
[1772115963442,1.93656598,2073.6,2073.0,1.447]
[1772115963924,1.93656598,2073.6,2073.0,2.652964]
[1772115966027,0.72493327,2073.5,2073.0,1.447]
[1772115966617,0.72493327,2073.5,2072.8,0.78698017]
[1772115966822,0.72493327,2073.3,2072.6,1.447]
[1772115967217,1.20763271,2073.6,2072.6,1.447]
[1772115967218,0.72493327,2073.1,2072.6,1.447]
[1772115967837,0.72893327,2073.0,2072.6,1.447]
[1772115968036,0.72893327,2073.0,2072.2,4.82566024]
[1772115968037,0.72493327,2072.8,2072.2,2.65340289]
[1772115968218,1.20603984,2072.9,2072.3,0.78698017]
[1772115968219,0.004,2072.9,2072.3,0.78698017]
[1772115968936,0.72893327,2072.9,2072.2,2.6534365]
[1772115969846,0.72893327,2072.9,2071.8,0.78798017]
[1772115970014,0.72493327,2072.7,2071.9,0.78698017]
[1772115971147,0.72493327,2072.5,2071.9,0.78698017]
[1772115971354,0.72493327,2072.5,2071.8,1.448]
[1772115971637,0.72893327,2072.4,2071.8,2.65467509]
[1772115971854,0.72493327,2072.4,2071.8,2.65467509]
[1772115972016,1.93130871,2072.4,2071.8,2.65467509]
[1772115972219,1.93130871,2072.4,2071.8,3.44165526]
[1772115975248,1.20629889,2072.5,2071.9,0.78698017]
[1772115975546,0.004,2072.4,2071.8,4.12377459]
[1772115975724,0.004,2072.4,2071.8,2.23498017]
[1772115975725,0.72893327,2072.4,2071.8,2.23498017]
[1772115976245,1.20638903,2072.3,2071.8,3.44165912]
[1772115976550,1.93531253,2072.4,2071.8,3.44165912]
[1772115977445,1.93531253,2072.4,2072.0,0.001]
[1772115978748,0.004,2072.4,2072.1,2.25607967]
[1772115978990,0.72493327,2073.3,2072.3,0.78698017]
[1772115979124,1.20776822,2073.4,2072.7,0.78698017]
[1772115979456,1.20776822,2073.4,2072.8,0.78698017]
[1772115979820,0.002,2073.4,2072.9,1.4690995]
[1772115980021,0.002,2073.4,2073.0,0.78698017]
[1772115981055,0.72693327,2073.4,2072.9,1.447]
[1772115981251,0.72693327,2073.4,2072.8,1.447]
[1772115982326,0.72493327,2073.2,2072.8,1.447]
[1772115983159,0.72493327,2073.2,2072.3,1.99332877]
[1772115983344,0.72493327,2073.2,2072.5,1.446]
[1772115984260,0.72493327,2073.2,2072.5,2.23298017]
[1772115984633,1.20592349,2073.1,2072.5,3.4392463]
[1772115987166,1.20592349,2073.1,2072.5,2.23298017]
[1772115987551,1.20592349,2073.1,2072.5,3.43925037]
[1772115988649,1.20592349,2073.1,2072.6,0.73522615]
[1772115989368,1.99469558,2073.1,2072.5,2.6522702]
[1772115989666,1.99469558,2073.1,2072.5,1.446]
[1772115989867,1.99469558,2073.1,2072.5,3.38749746]
[1772115990468,1.99469558,2073.1,2072.5,2.18122615]
[1772115990671,1.99469558,2073.1,2072.5,2.18222615]
[1772115990847,1.99669558,2073.1,2072.5,2.18222615]
[1772115991043,1.99669558,2073.1,2072.5,3.38849198]
[1772115991862,1.99669558,2073.1,2072.5,2.18222615]
[1772115992062,1.99669558,2073.1,2072.5,3.38849621]
[1772115992554,0.002,2073.1,2072.6,0.73522615]
[1772115992754,1.20792362,2073.1,2072.6,0.73522615]
[1772115993077,0.002,2073.1,2072.6,0.73522615]
[1772115993455,0.002,2073.4,2072.8,0.73522615]
[1772115993654,0.002,2073.4,2073.0,0.73522615]
[1772115995552,0.002,2073.4,2073.0,1.94119314]
[1772115995947,0.002,2073.4,2072.7,1.4690995]
[1772115995948,0.79077209,2073.4,2072.7,1.4690995]
[1772115996175,0.002,2073.4,2072.8,0.73522615]
[1772115996376,0.002,2073.4,2072.5,4.82603292]
[1772115996377,0.79077209,2073.4,2072.5,1.445]
[1772115996595,0.78877209,2073.3,2072.5,0.001]
[1772115996795,0.78877209,2073.2,2072.5,0.001]
[1772115997083,0.78877209,2073.2,2072.3,0.001]
[1772115997566,0.78877209,2073.0,2072.3,0.001]
[1772116000256,0.72992772,2072.8,2072.3,0.001]
[1772116002269,0.72992772,2072.6,2072.3,0.001]
[1772116004670,1.93614213,2072.6,2072.5,0.001]
[1772116004873,1.93614213,2072.6,2072.3,0.001]
[1772116005092,0.72992772,2072.5,2072.3,0.001]